bitfinex/quotes_SOLUSD_20250310
["timestamp","ask_amount","ask_price","bid_price","bid_amount"]
[1741573601539,64.17588769,128.63,128.57,365.22953883]
[1741573602015,37.75193883,128.62,128.57,365.22953883]
[1741573602328,45.52563883,128.64,128.59,37.75193883]
[1741573602529,45.52563883,128.64,128.59,254.59193883]
[1741573603531,45.52563883,128.64,128.59,262.36813883]
[1741573604511,45.52563883,128.64,128.59,254.59193883]
[1741573605129,37.75193883,128.6,128.59,216.84]
[1741573605427,37.75193883,128.61,128.57,319.7]
[1741573605611,45.52773883,128.61,128.57,319.7]
[1741573606320,37.75193883,128.63,128.57,365.22953883]
[1741573606532,37.75193883,128.61,128.57,536.54]
[1741573606708,37.75193883,128.61,128.57,401.14]
[1741573607028,37.75193883,128.61,128.57,393.44]
[1741573607238,37.75193883,128.59,128.56,143.1]
[1741573607609,37.75193883,128.6,128.56,143.1]
[1741573607833,45.52793883,128.6,128.56,143.1]
[1741573608130,45.52793883,128.6,128.56,143.163]
[1741573609811,45.52793883,128.6,128.56,135.463]
[1741573610007,37.75193883,128.59,128.56,0.063]
[1741573610213,37.75193883,128.58,128.56,0.063]
[1741573610718,39.36283883,128.59,128.56,0.063]
[1741573611029,37.75193883,128.58,128.56,0.063]
[1741573611912,7.7778,128.57,128.56,0.063]
[1741573612114,7.7774,128.58,128.56,0.063]
[1741573615342,45.52933883,128.58,128.56,0.063]
[1741573616138,7.7774,128.58,128.56,0.063]
[1741573616554,1.5935,128.63,128.57,23.65897028]
[1741573616721,1.5935,128.63,128.59,23.65897028]
[1741573616924,25.25247028,128.66,128.61,23.65897028]
[1741573617128,1.5935,128.66,128.62,23.65897028]
[1741573617545,1.5935,128.66,128.61,23.65897028]
[1741573618437,1.5935,128.66,128.62,7.7748]
[1741573618836,1.5935,128.66,128.62,31.43377028]
[1741573619153,23.65897028,128.69,128.63,23.65897028]
[1741573619338,25.80847028,128.7,128.65,23.65897028]
[1741573619656,25.80847028,128.7,128.65,343.35897028]
[1741573620021,0.03,128.68,128.65,343.35897028]
[1741573620225,0.03,128.68,128.65,574.32551423]
[1741573620475,0.03,128.68,128.65,582.09801423]
[1741573621042,0.03,128.68,128.65,536.54]
[1741573621249,37.81551423,128.68,128.65,536.54]
[1741573621426,0.03,128.68,128.65,536.54]
[1741573621621,0.03,128.68,128.65,401.14]
[1741573622048,37.81551423,128.68,128.65,401.14]
[1741573622456,0.03,128.68,128.67,57.78551423]
[1741573622636,0.53,128.7,128.67,274.62551423]
[1741573622841,0.53,128.7,128.69,37.78551423]
[1741573623349,0.53,128.7,128.69,293.5761553]
[1741573623543,0.53,128.7,128.69,254.62551423]
[1741573623853,0.53,128.7,128.69,216.84]
[1741573624057,0.53,128.7,128.65,236.22116839]
[1741573624259,38.31551423,128.7,128.65,228.44836839]
[1741573624934,38.31551423,128.7,128.65,266.23388262]
[1741573625476,38.31551423,128.7,128.66,7.68]
[1741573625656,37.78551423,128.69,128.66,7.68]
[1741573626551,37.78551423,128.67,128.66,7.68]
[1741573626751,37.78551423,128.67,128.63,135.4]
[1741573626937,37.78551423,128.67,128.62,7.68]
[1741573627459,45.55721423,128.68,128.62,262.30551423]
[1741573628859,45.55721423,128.68,128.62,574.30551423]
[1741573629158,37.78551423,128.68,128.62,574.30551423]
[1741573629356,37.78551423,128.69,128.64,37.78551423]
[1741573629554,45.55611423,128.69,128.64,37.78551423]
[1741573629760,37.78551423,128.67,128.62,574.30551423]
[1741573630363,37.78551423,128.64,128.61,188.99967274]
[1741573630540,37.78551423,128.64,128.58,216.84]
[1741573630541,37.78551423,128.62,128.58,81.44]
[1741573631453,45.56031423,128.62,128.58,81.44]
[1741573633009,45.56031423,128.62,128.57,143.08]
[1741573633010,37.78551423,128.61,128.57,143.08]
[1741573633262,45.56201423,128.6,128.57,143.08]
[1741573633460,37.78551423,128.61,128.57,143.08]
[1741573633663,37.78551423,128.62,128.57,143.08]
[1741573634055,37.78551423,128.61,128.57,143.08]
[1741573634271,37.78551423,128.62,128.57,143.08]
[1741573634958,37.78551423,128.62,128.57,180.86551423]
[1741573635269,26.42384886,128.63,128.58,37.78551423]
[1741573635462,64.20936309,128.63,128.58,37.78551423]
[1741573635667,37.78551423,128.62,128.57,180.86551423]
[1741573636673,20.0,128.62,128.58,37.78551423]
[1741573637255,7.7754,128.61,128.57,45.46551423]
[1741573637484,7.7754,128.61,128.57,7.68]
[1741573637780,26.78314886,128.66,128.6,37.78551423]
[1741573637982,64.56866309,128.66,128.61,37.78551423]
[1741573638172,64.56866309,128.66,128.63,37.78551423]
[1741573638173,8.1335,128.66,128.63,37.78551423]
[1741573638380,0.03,128.69,128.63,37.78551423]
[1741573638381,37.81551423,128.69,128.64,37.78551423]
[1741573638583,37.81551423,128.69,128.64,254.62551423]
[1741573639381,45.58631423,128.69,128.64,254.62551423]
[1741573639588,37.78551423,128.67,128.64,216.84]
[1741573640270,56.43516309,128.68,128.64,216.84]
[1741573641173,37.78551423,128.68,128.64,216.84]
[1741573641586,45.55701423,128.68,128.64,216.84]
[1741573643584,45.55701423,128.68,128.64,81.44]
[1741573644072,37.78551423,128.67,128.64,81.44]
[1741573644594,37.78551423,128.66,128.64,81.44]
[1741573644892,37.78551423,128.66,128.62,143.08]
[1741573645101,56.43516309,128.67,128.62,143.08]
[1741573645792,45.55791423,128.66,128.62,143.08]
[1741573646167,37.81551423,128.68,128.62,188.64031423]
[1741573646671,37.78551423,128.67,128.62,188.64031423]
[1741573646878,37.78551423,128.67,128.62,150.8548]
[1741573647874,45.55731423,128.67,128.62,150.8548]
[1741573648189,45.55731423,128.67,128.62,143.08]
[1741573648391,31.40058043,128.67,128.62,166.70878043]
[1741573648682,31.40058043,128.67,128.62,143.08]
[1741573649698,23.62878043,128.66,128.62,224.52]
[1741573649993,31.40058043,128.67,128.62,224.52]
[1741573650521,23.62878043,128.66,128.62,224.52]
[1741573651207,31.40058043,128.67,128.62,255.92348043]
[1741573651695,7.7718,128.67,128.62,255.92348043]
[1741573651912,31.43008043,128.68,128.63,23.62878043]
[1741573652110,0.03,128.68,128.65,23.62878043]
[1741573652318,0.03,128.68,128.66,23.62878043]
[1741573652693,0.03,128.68,128.67,7.68]
[1741573654909,0.03,128.68,128.67,120.52058043]
[1741573655126,0.03,128.68,128.67,567.92058043]
[1741573655989,0.03,128.68,128.67,536.52]
[1741573656191,0.03,128.68,128.67,224.52]
[1741573657613,0.03,128.68,128.67,7.68]
[1741573658307,0.03,128.68,128.67,255.92058043]
[1741573659205,0.03,128.68,128.67,567.92058043]
[1741573662431,0.53,128.7,128.68,81.4399]
[1741573662601,0.5,128.7,128.69,47.25756086]
[1741573663032,0.5,128.7,128.69,23.62878043]
[1741573663523,0.5,128.7,128.69,240.46868043]
[1741573664302,0.5,128.7,128.69,300.09586296]
[1741573664917,0.0001,128.7,128.69,318.74551182]
[1741573665218,0.0001,128.7,128.69,300.09586296]
[1741573665397,0.0001,128.7,128.69,574.35318148]
[1741573667819,0.0001,128.7,128.69,612.09586296]
[1741573668213,0.03,128.77,128.72,20.0]
[1741573668529,0.03,128.77,128.74,37.74268148]
[1741573669502,0.03,128.77,128.74,254.58258148]
[1741573669705,0.03,128.77,128.75,18.64964886]
[1741573669925,0.03,128.77,128.76,75.48536296]
[1741573670126,0.03,128.77,128.76,45.50898148]
[1741573671135,0.03,128.77,128.76,37.74268148]
[1741573671344,0.03,128.77,128.76,349.74268148]
[1741573672635,0.03,128.77,128.75,89.0999]
[1741573672830,0.03,128.77,128.75,81.4399]
[1741573673130,0.03,128.77,128.75,89.0999]
[1741573673342,0.03,128.77,128.75,126.84258148]
[1741573673509,0.03,128.77,128.76,37.74268148]
[1741573673828,0.53,128.78,128.77,81.4099]
[1741573674129,0.53,128.78,128.77,119.15258148]
[1741573674510,0.53,128.78,128.77,216.8099]
[1741573674718,0.53,128.78,128.77,254.55258148]
[1741573675235,0.53,128.78,128.77,216.8099]
[1741573675427,0.53,128.78,128.77,254.55258148]
[1741573676033,0.53,128.78,128.77,216.8099]
[1741573676234,0.53,128.78,128.77,254.55258148]
[1741573679438,0.53,128.78,128.77,7.66]
[1741573679620,8.2952,128.78,128.77,7.66]
[1741573679947,0.53,128.78,128.77,7.66]
[1741573680656,8.2951,128.78,128.77,7.66]
[1741573680947,8.2951,128.78,128.75,81.4099]
[1741573681242,46.03778148,128.78,128.75,81.4099]
[1741573681449,8.2951,128.78,128.75,81.4099]
[1741573681943,46.03778148,128.78,128.75,81.4099]
[1741573683430,46.03778148,128.78,128.74,147.04731221]
[1741573683431,46.03778148,128.78,128.74,143.06]
[1741573683638,7.8955,128.77,128.74,135.4]
[1741573683817,45.63818148,128.77,128.74,135.4]
[1741573684445,7.7663,128.76,128.73,274.1499]
[1741573684616,15.6615,128.77,128.73,311.89258148]
[1741573684817,15.6615,128.77,128.73,315.87841032]
[1741573685248,7.8955,128.77,128.74,37.74268148]
[1741573685436,15.6613,128.77,128.74,37.74268148]
[1741573685742,15.6613,128.77,128.73,315.87841032]
[1741573685938,53.40398148,128.77,128.73,278.13572884]
[1741573686330,39.25199897,128.77,128.73,278.13572884]
[1741573686528,15.6613,128.77,128.73,301.72642781]
[1741573687724,15.6613,128.77,128.73,278.13572884]
[1741573687928,23.59069897,128.76,128.73,192.74]
[1741573688139,23.59069897,128.76,128.72,135.4]
[1741573688337,23.59069897,128.76,128.72,7.66]
[1741573688537,7.7669,128.75,128.72,7.66]
[1741573689042,7.7669,128.75,128.72,31.25069897]
[1741573689245,7.7665,128.76,128.72,31.25069897]
[1741573689743,7.8955,128.77,128.74,23.59069897]
[1741573692230,8.2953,128.78,128.74,31.35819897]
[1741573692231,0.53,128.78,128.74,31.35819897]
[1741573692546,0.53,128.78,128.75,23.59069897]
[1741573692745,0.53,128.78,128.77,23.59069897]
[1741573692947,0.53,128.78,128.77,39.01639897]
[1741573693265,0.53,128.78,128.77,31.25069897]
[1741573694057,0.53,128.78,128.77,39.01639897]
[1741573694228,0.53,128.78,128.77,31.25069897]
[1741573694425,0.53,128.78,128.77,7.66]
[1741573695455,0.53,128.78,128.77,319.66]
[1741573695944,0.53,128.78,128.77,343.25069897]
[1741573696125,0.53,128.78,128.77,351.01639897]
[1741573696321,0.53,128.78,128.77,567.82629897]
[1741573696726,0.53,128.78,128.77,571.6419681]
[1741573697042,0.53,128.78,128.77,563.8762681]
[1741573697546,0.53,128.78,128.77,536.4699]
[1741573697748,8.2951,128.78,128.77,81.4099]
[1741573697926,31.88579897,128.78,128.77,81.4099]
[1741573698128,0.53,128.78,128.77,81.4099]
[1741573700657,31.88579897,128.78,128.77,81.4099]
[1741573700834,0.53,128.78,128.77,81.4099]
[1741573701242,8.2951,128.78,128.77,81.4099]
[1741573701551,0.53,128.78,128.77,81.4099]
[1741573702535,8.2951,128.78,128.77,81.4099]
[1741573703248,8.2951,128.78,128.75,7.66]
[1741573706158,31.88579897,128.78,128.75,7.66]
[1741573706954,23.59069897,128.76,128.72,81.4729]
[1741573707155,23.59069897,128.75,128.72,89.1329]
[1741573707357,23.59069897,128.74,128.72,89.1329]
[1741573707537,23.59069897,128.75,128.72,89.1329]
[1741573708264,7.7675,128.74,128.72,81.4729]
[1741573708458,7.7675,128.74,128.72,7.723]
[1741573708661,23.59069897,128.73,128.72,0.063]
[1741573709335,48.43174783,128.73,128.72,0.063]
[1741573709748,50.05584783,128.73,128.72,0.063]
[1741573710457,57.82394783,128.73,128.72,0.063]
[1741573710661,77.24434783,128.73,128.69,0.063]
[1741573710959,42.24034783,128.7,128.69,0.063]
[1741573712557,50.01034783,128.7,128.69,0.063]
[1741573713247,1.5899,128.69,128.64,81.4729]
[1741573713452,23.59069897,128.66,128.64,7.723]
[1741573714337,49.72229897,128.67,128.64,7.723]
[1741573714554,57.49429897,128.67,128.64,0.063]
[1741573715372,23.59069897,128.65,128.64,0.063]
[1741573715661,42.24034783,128.65,128.64,0.063]
[1741573715841,43.76424783,128.65,128.64,0.063]
[1741573716643,51.53724783,128.65,128.64,0.063]
[1741573716844,75.1279468,128.65,128.63,0.063]
[1741573717061,47.18139794,128.64,128.63,0.063]
[1741573717468,20.0,128.61,128.59,0.063]
[1741573717636,23.59069897,128.6,128.59,0.063]
[1741573718856,31.36669897,128.6,128.59,0.063]
[1741573719961,50.01634783,128.6,128.59,0.063]
[1741573722462,51.57884783,128.6,128.59,0.063]
[1741573725468,51.57884783,128.6,128.59,0.0001]
[1741573728642,51.57884783,128.6,128.56,0.0001]
[1741573728643,38.64964886,128.57,128.56,0.0001]
[1741573728851,62.24034783,128.57,128.56,0.0001]
[1741573729767,70.01814783,128.57,128.56,0.0001]
[1741573734472,46.42744886,128.57,128.56,0.0001]
[1741573734669,70.01814783,128.57,128.56,0.0001]
[1741573740780,20.0,128.53,128.51,0.568]
[1741573740958,23.59069897,128.52,128.51,0.568]
[1741573741554,31.37149897,128.52,128.51,0.568]
[1741573743795,50.02114783,128.52,128.51,0.568]
[1741573744496,42.24034783,128.52,128.51,0.568]
[1741573744978,20.0,128.52,128.51,0.568]
[1741573745566,23.59069897,128.53,128.51,0.568]
[1741573745770,50.02014783,128.54,128.51,0.568]
[1741573747382,23.59069897,128.53,128.51,0.568]
[1741573747591,23.59069897,128.52,128.51,0.568]
[1741573748081,26.42954886,128.54,128.51,0.568]
[1741573748263,23.59069897,128.53,128.51,0.568]
[1741573749177,42.24034783,128.52,128.51,0.568]
[1741573749562,81.5378468,128.52,128.51,0.0001]
[1741573749789,18.64964886,128.51,128.5,0.063]
[1741573749982,42.24034783,128.51,128.5,0.063]
[1741573751596,50.02174783,128.51,128.5,0.063]
[1741573753125,50.02174783,128.51,128.5,0.0001]
[1741573759789,38.64964886,128.49,128.48,0.063]
[1741573759993,62.24034783,128.49,128.48,0.063]
[1741573761381,70.02304783,128.49,128.48,0.063]
[1741573764309,61.60300055,128.49,128.48,0.063]
[1741573764604,61.60300055,128.49,128.47,0.063]
[1741573764775,15.17065169,128.48,128.47,0.063]
[1741573766104,22.95395169,128.48,128.47,0.063]
[1741573773322,102.28620731,128.48,128.47,0.0001]
[1741573773605,18.64964886,128.47,128.45,0.063]
[1741573773811,94.50290731,128.46,128.45,0.0001]
[1741573774106,18.64964886,128.45,128.44,0.0001]
[1741573774299,33.82030055,128.45,128.43,0.0001]
[1741573774484,33.82030055,128.44,128.43,0.0001]
[1741573775102,38.64964886,128.41,128.4,2.647119]
[1741573775411,53.82030055,128.41,128.4,2.647119]
[1741573776500,122.29040731,128.41,128.4,1.9e-05]
[1741573776707,123.91020731,128.41,128.4,1.9e-05]
[1741573778119,20.0,128.37,128.34,5.834019]
[1741573778416,15.17065169,128.36,128.34,5.834019]
[1741573780599,15.17065169,128.35,128.31,220.69757379]
[1741573780807,15.17065169,128.35,128.31,228.33757379]
[1741573782033,20.0,128.37,128.32,15.17065169]
[1741573782034,27.7901,128.37,128.32,15.17065169]
[1741573782198,20.0,128.37,128.33,15.17065169]
[1741573782396,35.17065169,128.37,128.32,15.17065169]
[1741573782594,35.17065169,128.37,128.33,312.0]
[1741573783301,15.17065169,128.36,128.33,312.0]
[1741573783721,15.17065169,128.36,128.32,7.7924]
[1741573783904,20.0,128.37,128.32,22.96305169]
[1741573784215,35.17065169,128.37,128.32,22.96305169]
[1741573784918,20.0,128.37,128.33,0.063]
[1741573785913,15.17065169,128.41,128.36,15.17065169]
[1741573786121,20.0,128.39,128.37,7.64]
[1741573786702,20.0,128.39,128.37,334.81065169]
[1741573786902,18.64964886,128.44,128.38,15.17065169]
[1741573787103,18.64964886,128.44,128.39,15.17065169]
[1741573787300,41.60600055,128.44,128.39,15.17065169]
[1741573787717,7.7847,128.46,128.39,239.76885169]
[1741573787915,15.17065169,128.44,128.39,239.76885169]
[1741573788217,7.7847,128.46,128.39,224.5982]
[1741573788420,23.71356663,128.43,128.39,224.5982]
[1741573788606,23.71356663,128.43,128.39,216.8099]
[1741573789224,50.14791549,128.46,128.39,216.8099]
[1741573789225,23.71356663,128.42,128.39,216.8099]
[1741573789517,23.71356663,128.4,128.39,216.8099]
[1741573789728,23.71356663,128.4,128.37,7.64]
[1741573791510,31.50166663,128.4,128.37,7.64]
[1741573792008,26.43654886,128.42,128.37,7.64]
[1741573792217,42.36321549,128.42,128.37,39.14326663]
[1741573793025,42.36321549,128.42,128.37,15.4297]
[1741573793238,23.71356663,128.41,128.37,15.4297]
[1741573793519,23.71356663,128.41,128.37,7.64]
[1741573793911,23.71356663,128.4,128.37,7.64]
[1741573795016,23.71356663,128.4,128.37,15.4299]
[1741573795205,50.15031549,128.42,128.37,39.14346663]
[1741573795405,23.71356663,128.41,128.37,7.64]
[1741573796714,31.50116663,128.41,128.37,7.64]
[1741573797809,23.71356663,128.39,128.37,7.64]
[1741573798403,23.71356663,128.4,128.37,7.64]
[1741573799404,31.50116663,128.41,128.37,7.64]
[1741573799926,30.88474069,128.41,128.37,7.64]
[1741573800128,23.71356663,128.4,128.37,7.64]
[1741573801510,31.50186663,128.4,128.37,7.64]
[1741573801733,23.71356663,128.38,128.34,7.703]
[1741573801905,23.71356663,128.37,128.34,7.703]
[1741573802106,7.7883,128.4,128.34,39.20826663]
[1741573802317,31.50186663,128.4,128.35,23.71356663]
[1741573802520,31.50166663,128.4,128.35,23.71356663]
[1741573803348,23.71356663,128.39,128.34,39.20826663]
[1741573803637,23.71356663,128.39,128.35,312.0]
[1741573804533,23.71356663,128.39,128.35,319.7911]
[1741573804730,6.3572,128.42,128.35,560.31456663]
[1741573804926,42.36321549,128.42,128.36,23.71356663]
[1741573805525,23.71356663,128.43,128.37,23.71356663]
[1741573805727,23.71356663,128.43,128.38,23.71356663]
[1741573805917,0.03,128.44,128.4,23.71356663]
[1741573806314,23.74356663,128.44,128.39,31.35356663]
[1741573806829,23.74356663,128.44,128.4,7.7881]
[1741573807020,0.03,128.44,128.4,31.50166663]
[1741573807219,0.03,128.44,128.4,248.31156663]
[1741573807414,0.03,128.44,128.4,224.598]
[1741573807615,23.71356663,128.43,128.4,216.8099]
[1741573807839,7.8159,128.44,128.4,216.8099]
[1741573808010,0.03,128.44,128.4,240.52346663]
[1741573808344,23.71356663,128.43,128.4,216.8099]
[1741573808516,23.71356663,128.43,128.4,528.8099]
[1741573808715,23.71356663,128.42,128.38,81.4099]
[1741573809021,23.71356663,128.43,128.39,7.64]
[1741573809418,23.74356663,128.44,128.39,31.35356663]
[1741573809620,0.03,128.44,128.41,23.71356663]
[1741573809828,0.03,128.44,128.41,240.52346663]
[1741573810141,0.03,128.44,128.41,216.8099]
[1741573810442,23.74356663,128.44,128.41,216.8099]
[1741573811730,23.71356663,128.43,128.41,528.8099]
[1741573812129,23.71356663,128.42,128.41,216.8099]
[1741573812431,23.71356663,128.42,128.37,224.4499]
[1741573812626,23.71356663,128.38,128.36,135.4]
[1741573812820,23.71356663,128.37,128.35,81.4099]
[1741573813021,23.71356663,128.39,128.35,81.4099]
[1741573813541,23.71356663,128.38,128.35,81.4099]
[1741573814624,18.64964886,128.39,128.34,0.063]
[1741573814923,23.71356663,128.35,128.34,0.063]
[1741573815539,31.50456663,128.36,128.34,0.063]
[1741573815848,23.71356663,128.35,128.34,0.063]
[1741573817035,50.15431549,128.35,128.34,0.063]
[1741573817236,51.69091549,128.35,128.34,0.063]
[1741573818432,75.40448212,128.35,128.34,0.063]
[1741573818640,18.64964886,128.34,128.28,0.505]
[1741573818826,23.71356663,128.29,128.28,0.505]
[1741573819231,23.71356663,128.3,128.28,0.505]
[1741573819722,20.18624886,128.35,128.29,7.64]
[1741573819943,23.71356663,128.35,128.3,23.71356663]
[1741573820345,23.71356663,128.35,128.3,240.52346663]
[1741573820676,30.03776663,128.37,128.31,23.71356663]
[1741573821030,23.71356663,128.38,128.33,23.71356663]
[1741573821247,42.36321549,128.39,128.34,7.64]
[1741573821428,6.2337,128.41,128.35,23.71356663]
[1741573821625,23.71356663,128.43,128.37,23.71356663]
[1741573821830,23.74356663,128.44,128.38,23.71356663]
[1741573822047,0.03,128.44,128.39,31.35356663]
[1741573822257,23.74356663,128.44,128.39,31.35356663]
[1741573822762,12.16205241,128.43,128.4,23.71356663]
[1741573823129,12.16205241,128.43,128.41,7.7875]
[1741573824032,12.16205241,128.43,128.4,216.8099]
[1741573824237,35.87561904,128.43,128.4,216.8099]
[1741573824556,23.71356663,128.42,128.4,216.8099]
[1741573825035,23.71356663,128.42,128.4,81.4099]
[1741573825443,23.74356663,128.44,128.4,81.4099]
[1741573825756,0.03,128.44,128.4,112.91146663]
[1741573826147,23.74356663,128.44,128.4,89.1979]
[1741573826339,23.71356663,128.43,128.4,81.4099]
[1741573826539,23.71356663,128.42,128.4,81.4099]
[1741573827059,23.71356663,128.43,128.4,81.4099]
[1741573827355,23.71356663,128.42,128.4,81.4099]
[1741573828039,23.71356663,128.42,128.35,216.8099]
[1741573828040,23.71356663,128.41,128.35,216.8099]
[1741573828233,23.71356663,128.38,128.35,89.2009]
[1741573829553,23.71356663,128.37,128.35,89.0499]
[1741573829767,23.71356663,128.37,128.34,15.4318]
[1741573830131,23.71356663,128.38,128.34,15.4318]
[1741573831457,23.71356663,128.39,128.34,15.4318]
[1741573831842,6.5743,128.42,128.36,23.71356663]
[1741573832053,23.71356663,128.41,128.36,240.52346663]
[1741573832736,23.71356663,128.4,128.36,216.8099]
[1741573833460,23.71356663,128.39,128.36,81.4099]
[1741573834172,23.71356663,128.39,128.36,89.2004]
[1741573834542,23.71356663,128.4,128.36,89.2004]
[1741573835769,23.71356663,128.4,128.36,81.4099]
[1741573836095,18.64964886,128.41,128.36,81.4099]
[1741573836096,23.71356663,128.39,128.36,81.4099]
[1741573836393,23.71356663,128.37,128.34,0.063]
[1741573836588,23.71356663,128.36,128.34,0.063]
[1741573836791,23.71356663,128.37,128.34,0.063]
[1741573837284,23.71356663,128.38,128.34,0.063]
[1741573837468,23.71356663,128.39,128.34,31.56826663]
[1741573837783,25.30846663,128.41,128.36,7.7905]
[1741573838088,25.30846663,128.41,128.36,15.4305]
[1741573838387,23.71356663,128.4,128.36,232.2404]
[1741573839294,23.71356663,128.4,128.36,544.2404]
[1741573840494,23.71356663,128.4,128.36,536.4499]
[1741573840901,23.71356663,128.39,128.36,536.4499]
[1741573842103,31.50286663,128.38,128.34,0.063]
[1741573842296,23.71356663,128.37,128.34,0.063]
[1741573842598,7.7893,128.38,128.34,0.063]
[1741573842599,23.71356663,128.36,128.34,0.063]
[1741573842906,23.71356663,128.35,128.34,0.063]
[1741573845326,23.71356663,128.36,128.34,0.063]
[1741573847290,23.71356663,128.37,128.34,0.063]
[1741573848708,1.5949,128.41,128.35,31.33356663]
[1741573848882,23.71356663,128.38,128.35,224.4299]
[1741573849196,23.71356663,128.38,128.35,89.0299]
[1741573849691,23.71356663,128.37,128.35,89.0299]
[1741573850199,42.36321549,128.4,128.35,89.0299]
[1741573850487,23.71356663,128.37,128.35,89.0299]
[1741573850707,50.15151549,128.4,128.35,89.0299]
[1741573850708,23.71356663,128.36,128.35,89.0299]
[1741573850865,23.71356663,128.36,128.35,81.4099]
[1741573852080,42.36321549,128.36,128.34,0.063]
[1741573852274,23.71356663,128.35,128.34,0.063]
[1741573852967,50.15431549,128.35,128.34,0.063]
[1741573853167,73.86788212,128.35,128.34,0.063]
[1741573853769,66.07678212,128.35,128.34,0.063]
[1741573853979,42.36321549,128.35,128.34,0.063]
[1741573854982,23.71356663,128.35,128.34,0.063]
[1741573856379,42.36321549,128.35,128.34,0.063]
[1741573856584,66.07678212,128.35,128.34,0.063]
[1741573856767,50.15431549,128.35,128.34,0.063]
[1741573856962,42.36321549,128.35,128.34,0.063]
[1741573858867,50.15431549,128.35,128.34,0.063]
[1741573859696,42.36321549,128.35,128.34,0.063]
[1741573859899,23.71356663,128.35,128.34,0.063]
[1741573862779,7.9854,128.36,128.34,0.063]
[1741573862973,23.71356663,128.36,128.34,0.063]
[1741573863485,23.71356663,128.35,128.34,0.063]
[1741573863892,42.36321549,128.35,128.34,0.063]
[1741573864862,50.15431549,128.35,128.34,0.063]
[1741573865084,73.86788212,128.35,128.34,0.063]
[1741573865267,50.15431549,128.35,128.34,0.063]
[1741573865985,42.36321549,128.35,128.34,0.063]
[1741573867693,0.03,128.37,128.34,0.063]
[1741573867895,23.71356663,128.36,128.34,0.063]
[1741573868292,23.71356663,128.35,128.34,0.063]
[1741573869106,0.03,128.37,128.34,0.063]
[1741573869770,23.74356663,128.37,128.34,0.063]
[1741573870676,23.74356663,128.37,128.34,312.063]
[1741573870876,23.71356663,128.35,128.34,0.063]
[1741573871277,23.71356663,128.36,128.34,0.063]
[1741573871473,23.71356663,128.36,128.34,7.8548]
[1741573871893,0.03,128.37,128.34,7.8548]
[1741573872215,0.03,128.37,128.34,31.56836663]
[1741573872501,23.74356663,128.37,128.34,89.2647]
[1741573872996,23.71356663,128.36,128.34,81.4729]
[1741573874705,23.74356663,128.37,128.34,81.4729]
[1741573874998,0.03,128.37,128.34,89.2645]
[1741573875799,0.03,128.37,128.34,112.97806663]
[1741573876301,0.03,128.37,128.36,23.71356663]
[1741573876808,0.03,128.37,128.36,240.52346663]
[1741573877505,0.03,128.37,128.36,81.4099]
[1741573877800,0.03,128.37,128.34,216.8729]
[1741573878012,23.74356663,128.37,128.34,81.4729]
[1741573878395,0.03,128.37,128.34,81.4729]
[1741573878710,0.03,128.37,128.34,105.18646663]
[1741573878894,0.03,128.37,128.34,112.97796663]
[1741573879094,0.03,128.37,128.34,81.4729]
[1741573879293,23.74356663,128.37,128.34,81.4729]
[1741573879523,18.67964886,128.37,128.34,81.4729]
[1741573879729,23.71356663,128.36,128.34,81.4729]
[1741573880294,0.03,128.37,128.34,81.4729]
[1741573881000,0.03,128.37,128.34,89.2646]
[1741573881323,23.74356663,128.37,128.34,0.063]
[1741573881527,0.03,128.37,128.34,7.8547]
[1741573882525,0.03,128.37,128.36,335.71356663]
[1741573882735,0.03,128.37,128.36,343.33356663]
[1741573883487,0.03,128.42,128.38,81.3799]
[1741573883817,0.03,128.42,128.41,23.71356663]
[1741573884028,0.03,128.42,128.41,248.11346663]
[1741573884533,0.03,128.42,128.41,255.90096663]
[1741573885016,23.74356663,128.42,128.38,7.62]
[1741573885223,23.71356663,128.39,128.36,81.3799]